bitfinex/quotes_SOLUSD_20250818
["timestamp","ask_amount","ask_price","bid_price","bid_amount"]
[1755558916319,0.06,184.59,184.58,27.54012969]
[1755558918203,0.06,184.59,184.58,27.50012969]
[1755558918406,0.06,184.59,184.58,22.69482463]
[1755558918610,0.06,184.59,184.58,27.50012969]
[1755558921806,0.77,184.59,184.58,5.41770506]
[1755558923708,0.77,184.59,184.57,10.22330365]
[1755558924813,0.71,184.58,184.57,5.41799859]
[1755558925018,0.06,184.59,184.57,10.22330365]
[1755558925406,0.06,184.59,184.58,4.80530506]
[1755558926293,0.06,184.59,184.58,19.91152063]
[1755558926695,1e-08,184.61,184.58,19.91152063]
[1755558926696,1e-08,184.61,184.6,20.52333366]
[1755558927006,1e-08,184.62,184.61,15.10621557]
[1755558927317,1e-08,184.62,184.61,19.95152063]
[1755558927723,1e-08,184.62,184.61,19.91152063]
[1755558928819,1e-08,184.62,184.61,27.49877828]
[1755558934731,1e-08,184.62,184.61,25.32834528]
[1755558936008,0.71000001,184.62,184.61,25.32834528]
[1755558937128,0.71000001,184.62,184.61,20.52304022]
[1755558937617,0.71000001,184.62,184.59,5.41741156]
[1755558938110,0.71000001,184.62,184.59,5.44741156]
[1755558940637,5.51530507,184.62,184.59,5.44741156]
[1755558940817,0.71,184.61,184.59,5.44741156]
[1755558941532,0.71,184.6,184.59,5.44741156]
[1755558942039,0.71,184.6,184.59,0.03]
[1755558942638,5.51530506,184.6,184.59,0.03]
[1755558943338,10.93242315,184.6,184.59,0.03]
[1755558944040,5.51530506,184.6,184.59,0.03]
[1755558950228,0.71,184.6,184.59,0.03]
[1755558950440,5.51530506,184.6,184.59,0.03]
[1755558950933,0.71,184.6,184.59,0.03]
[1755558954423,5.51530506,184.6,184.59,0.03]
[1755558957335,0.71,184.6,184.59,0.03]
[1755558958748,3.61709177,184.61,184.59,0.03]
[1755558959054,4.32709178,184.62,184.59,0.03]
[1755558959235,5.51530507,184.62,184.59,0.03]
[1755558959436,1e-08,184.62,184.59,0.03]
[1755558959636,0.71000001,184.62,184.59,0.03]
[1755558961152,0.71,184.61,184.59,0.03]
[1755558966556,5.51530506,184.6,184.59,0.03]
[1755558967352,0.71,184.6,184.59,0.03]
[1755558967556,5.51530506,184.6,184.59,0.03]
[1755558969548,18.57918073,184.6,184.59,0.03]
[1755558972066,26.0,184.58,184.57,0.03]
[1755558972268,81.3373677,184.58,184.55,0.03]
[1755558972460,9.61061012,184.56,184.53,0.03]
[1755558972638,4.80530506,184.54,184.53,0.03]
[1755558972838,46.50691762,184.54,184.53,0.03]
[1755558973152,47.21691762,184.54,184.53,0.03]
[1755558973349,52.63579699,184.54,184.53,0.03]
[1755558974046,47.83049193,184.54,184.53,0.03]
[1755558974252,47.21691762,184.54,184.53,0.03]
[1755558975771,4.80530506,184.58,184.53,0.03]
[1755558976074,38.08,184.57,184.53,4.90530506]
[1755558976467,38.79,184.57,184.53,0.1]
[1755558976658,38.79,184.57,184.53,0.03]
[1755558977042,38.79,184.57,184.53,5.44917303]
[1755558978048,38.08,184.57,184.54,0.07]
[1755558979194,38.08,184.57,184.54,4.80530506]
[1755558979344,0.71,184.61,184.55,4.87530506]
[1755558979548,42.40901904,184.61,184.56,4.80530506]
[1755558979774,38.79,184.61,184.56,4.87530506]
[1755558980084,38.79,184.61,184.57,4.80530506]
[1755558982378,38.79,184.61,184.58,4.80530506]
[1755558982551,38.08,184.61,184.59,4.80530506]
[1755558982752,1e-08,184.62,184.6,4.80530506]
[1755558982974,1e-08,184.62,184.58,0.07]
[1755558983182,1e-08,184.62,184.59,4.80530506]
[1755558983875,0.71000001,184.62,184.6,5.41711809]
[1755558986777,1e-08,184.62,184.6,5.41711809]
[1755558987715,1e-08,184.62,184.61,19.98152063]
[1755558988291,1e-08,184.62,184.61,20.52320309]
[1755558988589,1e-08,184.62,184.61,25.94002774]
[1755558989970,1e-08,184.62,184.61,51.94002774]
[1755558990190,1e-08,184.63,184.62,15.10621557]
[1755558990385,1e-08,184.63,184.62,19.91152063]
[1755558990591,1e-08,184.63,184.62,19.98152063]
[1755558991299,1e-08,184.65,184.64,41.10621557]
[1755558991596,1e-08,184.66,184.65,15.10621557]
[1755558991775,1e-08,184.66,184.65,15.17621557]
[1755558991980,1e-08,184.66,184.65,19.98152063]
[1755558992878,1e-08,184.67,184.65,19.98152063]
[1755558993194,1e-08,184.67,184.66,45.98152063]
[1755558993407,1e-08,184.67,184.66,51.39687858]
[1755558993894,1e-08,184.67,184.66,51.32687858]
[1755558996104,1e-08,184.67,184.66,89.38687858]
[1755558996407,0.71000001,184.67,184.66,84.58157352]
[1755558996724,0.71000001,184.67,184.66,51.32687858]
[1755558999507,1e-08,184.67,184.66,51.32687858]
[1755559001592,1e-08,184.67,184.66,89.45687858]
[1755559002425,1e-08,184.67,184.66,89.38687858]
[1755559004102,1e-08,184.67,184.66,89.45687858]
[1755559006502,0.06,184.69,184.67,15.10621557]
[1755559006809,0.06,184.69,184.68,83.95152063]
[1755559007813,1e-08,184.69,184.68,89.43629212]
[1755559009811,0.67000001,184.69,184.68,84.56098706]
[1755559010016,0.67000001,184.69,184.68,89.36629212]
[1755559011595,0.67000001,184.69,184.68,84.56098706]
[1755559011811,0.67000001,184.69,184.68,89.36629212]
[1755559013121,0.67000001,184.69,184.68,58.56098706]
[1755559014111,1e-08,184.69,184.68,63.36629212]
[1755559017397,1e-08,184.69,184.68,58.56098706]
[1755559017398,0.67000001,184.69,184.68,58.56098706]
[1755559017713,0.67000001,184.69,184.68,63.36629212]
[1755559020805,1e-08,184.69,184.68,63.36629212]
[1755559025416,0.67000001,184.69,184.68,63.36629212]
[1755559026109,1e-08,184.69,184.68,63.36629212]
[1755559028704,1e-08,184.69,184.68,89.43629212]
[1755559029314,1e-08,184.69,184.68,89.36629212]
[1755559030108,1e-08,184.69,184.68,63.36629212]
[1755559032746,1e-08,184.69,184.68,63.90776926]
[1755559036137,1e-08,184.69,184.68,64.00776926]
[1755559036721,1e-08,184.69,184.68,63.91776926]
[1755559036907,0.69000001,184.69,184.68,63.37629212]
[1755559037308,0.69000001,184.69,184.68,20.55098706]
[1755559037528,0.69000001,184.69,184.68,43.46477149]
[1755559038428,0.69000001,184.69,184.68,5.44477149]
[1755559038623,0.69000001,184.69,184.68,0.03]
[1755559039440,0.69000001,184.69,184.68,4.83530506]
[1755559040266,0.69000001,184.69,184.68,0.03]
[1755559048039,4.32531151,184.69,184.68,0.03]
[1755559048432,9.13061657,184.69,184.68,0.03]
[1755559048732,13.16874799,184.69,184.68,0.03]
[1755559049935,18.5832263,184.69,184.68,0.03]
[1755559056372,13.77792124,184.69,184.68,0.03]
[1755559056532,18.5832263,184.69,184.68,0.03]
[1755559056949,18.57115676,184.69,184.68,0.03]
[1755559057733,18.5704944,184.69,184.68,0.03]
[1755559059647,56.6104944,184.69,184.68,0.03]
[1755559066259,56.60362802,184.69,184.68,0.03]
[1755559069280,52.58509488,184.69,184.68,0.03]
[1755559069472,56.60259663,184.69,184.68,0.03]
[1755559075593,56.60199843,184.69,184.68,0.03]
[1755559076150,52.58509488,184.69,184.68,0.03]
[1755559076457,56.60213156,184.69,184.68,0.03]
[1755559078380,54.8727788,184.69,184.68,0.03]
[1755559080384,67.176588,184.69,184.68,0.03]
[1755559080975,54.8727788,184.69,184.68,0.03]
[1755559081566,59.41957543,184.69,184.68,0.03]
[1755559081760,61.59047943,184.69,184.68,0.03]
[1755559083680,61.59776706,184.69,184.68,0.03]
[1755559084490,61.59852089,184.69,184.68,0.03]
[1755559085469,57.05172426,184.69,184.66,0.03]
[1755559085780,3.0759523,184.67,184.66,0.03]
[1755559085980,48.75634194,184.67,184.66,0.03]
[1755559086183,49.45634194,184.67,184.66,0.03]
[1755559086885,54.87140665,184.67,184.66,0.03]
[1755559088288,59.40024735,184.67,184.66,0.03]
[1755559089068,54.17140665,184.67,184.66,0.03]
[1755559089873,54.17732247,184.67,184.66,0.03]
[1755559090099,54.89732247,184.67,184.66,0.03]
[1755559090305,59.42616317,184.67,184.66,0.03]
[1755559092293,26.0,184.65,184.64,0.03]
[1755559092498,74.76225776,184.65,184.64,0.03]
[1755559092685,75.48225776,184.65,184.64,0.03]
[1755559092885,77.65858009,184.65,184.64,0.03]
[1755559093300,83.07423132,184.65,184.64,0.03]
[1755559093496,83.07472005,184.65,184.64,0.03]
[1755559093882,83.07472005,184.65,184.62,0.03]
[1755559094184,7.61642604,184.63,184.62,0.03]
[1755559094392,26.0,184.61,184.58,0.03]
[1755559094695,79.30722979,184.61,184.58,0.03]
[1755559094996,82.19907679,184.61,184.58,0.03]
[1755559095301,83.07648247,184.61,184.58,0.03]
[1755559095481,7.61092341,184.59,184.58,0.03]
[1755559095685,53.30278193,184.59,184.58,0.03]
[1755559095886,54.02278193,184.59,184.58,0.03]
[1755559096198,54.01870289,184.59,184.58,0.03]
[1755559096398,56.63672219,184.59,184.58,0.03]
[1755559096582,51.82519104,184.59,184.58,0.03]
[1755559096797,56.63672219,184.59,184.58,0.03]
[1755559101108,56.63672219,184.59,184.53,0.03]
[1755559101109,26.0,184.56,184.53,0.03]
[1755559101288,4.81153115,184.54,184.53,0.03]
[1755559101488,12.47931063,184.54,184.53,0.03]
[1755559101903,13.19931063,184.54,184.53,0.03]
[1755559102201,13.18629967,184.54,184.53,0.03]
[1755559102604,13.18378258,184.54,184.53,0.03]
[1755559102812,12.46378258,184.54,184.53,0.03]
[1755559103176,8.44684265,184.54,184.53,0.03]
[1755559103376,0.72,184.6,184.53,0.1]
[1755559103613,0.72,184.6,184.54,0.07]
[1755559103614,4.81153115,184.57,184.54,0.07]
[1755559103785,42.83153115,184.56,184.54,0.07]
[1755559104402,42.83153115,184.56,184.55,0.07]
[1755559104989,38.02,184.56,184.55,0.07]
[1755559107811,4.81153115,184.58,184.55,0.07]
[1755559107988,38.02,184.57,184.55,0.07]
[1755559109417,42.83153115,184.57,184.53,0.1]
[1755559109597,42.83153115,184.57,184.54,0.07]
[1755559111195,4.81153115,184.57,184.54,0.07]
[1755559111509,9.81451971,184.61,184.54,0.07]
[1755559111510,4.81153115,184.58,184.54,0.07]
[1755559111708,38.02,184.57,184.54,0.07]
[1755559111916,38.02,184.57,184.54,4.88153115]
[1755559112213,38.02,184.57,184.55,0.07]
[1755559112395,38.02,184.57,184.54,4.81153115]
[1755559112598,38.02,184.57,184.56,0.07]
[1755559113205,42.83153115,184.59,184.56,0.07]
[1755559113399,38.02,184.59,184.56,0.07]
[1755559113997,38.02,184.59,184.58,4.81153115]
[1755559114201,38.02,184.61,184.58,0.07]
[1755559114389,38.74,184.61,184.56,4.88153115]
[1755559114612,5.53153115,184.6,184.55,18.96505011]
[1755559114917,0.72,184.59,184.55,18.96505011]
[1755559115219,0.72,184.59,184.55,19.03505011]
[1755559115820,42.83153115,184.59,184.55,5.41858574]
[1755559116025,42.83153115,184.59,184.55,5.48858574]
[1755559116233,43.55153115,184.59,184.55,5.41858574]
[1755559116727,5.53153115,184.58,184.55,5.41858574]
[1755559117092,38.02,184.57,184.55,5.41858574]
[1755559117910,38.02,184.57,184.54,5.41887937]
[1755559118295,38.02,184.57,184.54,5.44887937]
[1755559118505,38.02,184.57,184.54,5.51887937]
[1755559118706,38.02,184.57,184.54,5.44887937]
[1755559118908,38.72,184.57,184.54,5.44887937]
[1755559119531,0.7,184.56,184.54,0.03]
[1755559119734,5.51153115,184.56,184.54,0.03]
[1755559119915,42.83153115,184.55,184.54,0.03]
[1755559120111,38.72,184.55,184.54,0.03]
[1755559120926,43.53153115,184.55,184.54,0.03]
[1755559124340,42.83153115,184.55,184.54,0.03]
[1755559124508,38.02,184.55,184.54,0.03]
[1755559124908,5.51153115,184.57,184.54,0.03]
[1755559125114,38.02,184.56,184.54,0.03]
[1755559125310,5.51153115,184.57,184.54,0.03]
[1755559125624,38.02,184.56,184.54,0.03]
[1755559129724,38.72,184.56,184.54,0.03]
[1755559130628,38.02,184.56,184.54,0.03]
[1755559132138,38.72,184.56,184.54,0.03]
[1755559133038,0.7,184.55,184.54,0.03]
[1755559133241,5.51153115,184.55,184.54,0.03]
[1755559133438,9.13136272,184.55,184.54,0.03]
[1755559136330,13.15715765,184.55,184.54,0.03]
[1755559138426,9.13136272,184.55,184.54,0.03]
[1755559138645,13.16001528,184.55,184.54,0.03]
[1755559138943,8.34848413,184.55,184.54,0.03]
[1755559139147,42.31983157,184.55,184.54,0.03]
[1755559139539,51.16011884,184.55,184.54,0.03]
[1755559140140,46.34858769,184.55,184.54,0.03]
[1755559140345,51.16011884,184.55,184.54,0.03]
[1755559140654,41.61983157,184.55,184.54,0.03]
[1755559141529,42.31983157,184.55,184.54,0.03]
[1755559141956,47.13136272,184.55,184.54,0.03]
[1755559142652,42.31983157,184.55,184.54,0.03]
[1755559142838,46.34844578,184.55,184.54,0.03]
[1755559143044,51.15997693,184.55,184.54,0.03]
[1755559143555,46.34844578,184.55,184.54,0.03]
[1755559143740,51.15997693,184.55,184.54,0.03]
[1755559143941,56.57856267,184.55,184.51,0.03]
[1755559144255,4.81153115,184.52,184.5,0.03]
[1755559144442,50.45997693,184.51,184.5,0.03]
[1755559144642,51.15997693,184.51,184.5,0.03]
[1755559146460,30.53497111,184.54,184.5,0.03]
[1755559146461,4.53497111,184.54,184.5,15.13621557]
[1755559146658,0.06,184.58,184.54,15.10621557]
[1755559146888,0.06,184.58,184.57,4.81153115]
[1755559147359,0.06,184.58,184.57,5.00153115]
[1755559147932,0.06,184.58,184.57,4.81153115]
[1755559148135,0.06,184.58,184.57,20.10774672]
[1755559148471,0.06,184.58,184.57,25.52574531]
[1755559152964,0.06,184.58,184.57,25.33574531]
[1755559155376,0.06,184.58,184.57,10.22952974]
[1755559155665,0.78,184.58,184.57,10.22952974]
[1755559156761,0.06,184.58,184.57,10.22952974]
[1755559157151,0.06,184.58,184.57,5.41799859]
[1755559157355,0.06,184.58,184.57,10.22952974]
[1755559159049,0.06,184.58,184.57,25.52574531]
[1755559160155,0.06,184.58,184.57,20.52421416]
[1755559160356,0.78,184.58,184.57,5.41799859]
[1755559162693,0.78,184.58,184.55,5.41829976]
[1755559163964,0.72,184.57,184.55,5.41829976]
[1755559164284,0.72,184.57,184.55,10.22983091]
[1755559164767,0.06,184.58,184.56,4.81153115]
[1755559164981,0.06,184.58,184.57,4.81153115]
[1755559165389,0.06,184.58,184.57,5.41799859]
[1755559165687,0.78,184.58,184.57,5.41799859]
[1755559166257,0.06,184.58,184.57,5.41799859]
[1755559166598,0.78,184.58,184.57,5.41799859]
[1755559168587,0.06,184.58,184.57,5.41799859]
[1755559168791,0.06,184.58,184.57,4.81153115]
[1755559169173,0.06,184.58,184.55,5.60858574]
[1755559169373,0.06,184.58,184.57,4.81153115]
[1755559169756,0.06,184.58,184.55,5.60858574]
[1755559169959,0.06,184.58,184.57,10.22952974]
[1755559170470,0.06,184.58,184.57,5.41799859]
[1755559172412,0.78,184.58,184.56,15.10621557]
[1755559172569,0.06,184.58,184.56,15.10621557]
[1755559172893,0.78,184.58,184.56,19.91774672]
[1755559174289,0.78,184.58,184.57,5.41799859]
[1755559175670,0.78,184.58,184.56,5.4182153]
[1755559177391,0.06,184.58,184.55,5.41858574]
[1755559177583,0.72,184.57,184.54,5.44882882]
[1755559177781,0.72,184.57,184.54,20.55504439]
[1755559178806,0.72,184.57,184.54,0.03]
[1755559178807,4.81153115,184.56,184.54,0.03]
[1755559179119,4.81153115,184.55,184.54,0.03]
[1755559179297,5.52153115,184.55,184.54,0.03]
[1755559179694,10.94011689,184.55,184.54,0.03]
[1755559180100,14.56113196,184.55,184.54,0.03]
[1755559180900,10.94011689,184.55,184.54,0.03]
[1755559181097,14.56113196,184.55,184.54,0.03]
[1755559181298,10.94011689,184.55,184.54,0.03]
[1755559181515,14.56113196,184.55,184.54,0.03]
[1755559181704,10.94011689,184.55,184.54,0.03]
[1755559182015,14.56113196,184.55,184.54,0.03]
[1755559182196,10.94011689,184.55,184.54,0.03]
[1755559182398,14.56113196,184.55,184.54,0.03]
[1755559182633,10.94011689,184.55,184.54,0.03]
[1755559182908,14.56113196,184.55,184.54,0.03]
[1755559183081,10.94011689,184.55,184.54,0.03]
[1755559183282,14.56113196,184.55,184.54,0.03]
[1755559183482,10.94011689,184.55,184.54,0.03]
[1755559183782,14.56113196,184.55,184.54,0.03]
[1755559183983,10.94011689,184.55,184.54,0.03]
[1755559184184,14.56113196,184.55,184.54,0.03]
[1755559184490,10.94011689,184.55,184.54,0.03]
[1755559184807,14.56113196,184.55,184.54,0.03]
[1755559184990,18.57599076,184.55,184.54,0.03]
[1755559185412,3.62101507,184.55,184.54,0.22]
[1755559185615,4.87153115,184.58,184.54,0.03]
[1755559185818,5.52153115,184.57,184.54,0.03]
[1755559186313,0.71,184.57,184.54,0.03]
[1755559189216,0.71,184.56,184.54,0.03]
[1755559194535,0.71,184.55,184.54,0.03]
[1755559197923,5.52153115,184.55,184.54,0.03]
[1755559198122,9.14254622,184.55,184.54,0.03]
[1755559198330,5.52153115,184.55,184.54,0.03]
[1755559198522,9.14254622,184.55,184.54,0.03]
[1755559198713,0.71,184.55,184.54,0.03]
[1755559200598,3.62101507,184.57,184.54,4.84153115]
[1755559200797,3.68101507,184.58,184.54,0.03]
[1755559201000,4.81153115,184.56,184.54,0.03]
[1755559201532,0.71,184.55,184.54,0.03]
[1755559201824,0.71,184.56,184.54,0.03]
[1755559202211,5.52153115,184.55,184.54,0.03]
[1755559202413,0.71,184.55,184.54,0.03]
[1755559202607,5.52153115,184.55,184.54,0.03]
[1755559203724,0.71,184.55,184.54,0.03]
[1755559207223,8.43254622,184.56,184.54,0.03]
[1755559207421,4.33101507,184.55,184.54,0.03]
[1755559207932,0.71,184.55,184.54,0.03]
[1755559208348,0.7,184.56,184.54,0.03]
[1755559208517,0.7,184.55,184.54,0.03]
[1755559210540,4.31874564,184.55,184.54,0.03]
[1755559210915,0.7,184.55,184.54,0.03]
[1755559211126,4.31874564,184.55,184.54,0.03]
[1755559221329,26.0,184.52,184.49,0.03]
[1755559221528,4.81153115,184.5,184.48,0.03]
[1755559221740,12.18052107,184.51,184.48,0.03]
[1755559221741,50.62050999,184.49,184.48,0.03]
[1755559221931,51.32050999,184.49,184.48,0.03]
[1755559222346,7.64694649,184.49,184.48,0.03]
[1755559222549,3.61874564,184.49,184.48,0.03]
[1755559224936,9.13027679,184.49,184.48,0.03]
[1755559227055,0.06,184.58,184.52,15.10621557]
[1755559227228,4.87153115,184.58,184.52,20.22774672]
[1755559227429,4.81153115,184.56,184.48,0.03]
[1755559227663,4.81153115,184.54,184.53,26.0]
[1755559227863,5.51153115,184.54,184.53,26.0]
[1755559228171,5.51153115,184.56,184.53,26.0]
[1755559228764,0.7,184.56,184.53,26.0]
[1755559228963,5.51153115,184.56,184.53,31.41913424]
[1755559229324,0.7,184.56,184.53,31.41913424]
[1755559229775,5.51153115,184.56,184.53,31.41913424]
[1755559230227,4.81153115,184.57,184.53,31.72913424]
[1755559230548,0.7,184.57,184.53,31.41913424]
[1755559230762,0.06,184.58,184.54,0.31]
[1755559230959,9.60054269,184.58,184.53,31.41913424]
[1755559231166,9.54039948,184.57,184.53,31.41913424]
[1755559231344,5.51153115,184.57,184.53,31.41913424]
[1755559233966,5.51153115,184.57,184.52,20.52568229]
[1755559234163,5.51153115,184.57,184.52,25.33721344]
[1755559234483,5.51153115,184.57,184.52,25.64721344]
[1755559235165,4.81153115,184.57,184.53,0.31]
[1755559235346,4.87153115,184.58,184.54,5.41887937]
[1755559235551,5.57153115,184.58,184.54,5.41887937]
[1755559235862,0.06,184.58,184.54,10.54041052]
[1755559236039,0.06,184.58,184.55,0.31]
[1755559236864,0.06,184.58,184.54,10.23041052]
[1755559237045,5.57153115,184.58,184.54,5.41887937]
[1755559237245,0.76,184.58,184.54,5.41887937]
[1755559237445,5.57153115,184.58,184.54,5.41887937]
[1755559237965,0.7,184.57,184.54,5.41887937]
[1755559238350,4.87153115,184.58,184.54,5.41887937]
[1755559238548,5.57153115,184.58,184.54,5.41887937]
[1755559239066,3.62243266,184.57,184.54,5.41887937]
[1755559240559,0.76,184.58,184.54,5.41887937]
[1755559240865,5.57153115,184.58,184.54,5.41887937]
[1755559241269,5.51153115,184.57,184.54,5.41887937]
[1755559241470,5.51153115,184.56,184.52,20.5254033]
[1755559241786,5.51153115,184.55,184.52,20.5254033]
[1755559241991,0.7,184.55,184.52,20.5254033]
[1755559242148,5.51153115,184.55,184.52,5.41918773]
[1755559242487,4.81153115,184.55,184.52,5.41918773]
[1755559242679,0.7,184.55,184.52,5.41918773]
[1755559243068,4.81153115,184.55,184.51,31.41967158]
[1755559243368,4.81153115,184.53,184.5,20.52603261]
[1755559243778,5.51153115,184.53,184.5,20.52603261]
[1755559243963,4.81153115,184.53,184.5,20.52603261]
[1755559244166,4.81153115,184.55,184.51,0.31]
[1755559244480,4.81153115,184.54,184.5,20.52603261]
[1755559244854,4.81153115,184.54,184.5,20.83603261]
[1755559245380,5.51153115,184.55,184.5,20.83603261]
[1755559245764,9.13429063,184.55,184.5,20.83603261]
[1755559246062,5.51153115,184.55,184.5,20.83603261]
[1755559246458,9.13429063,184.55,184.5,20.83603261]
[1755559246656,5.51153115,184.55,184.5,20.83603261]
[1755559247052,9.13429063,184.55,184.5,20.83603261]
[1755559247274,5.51153115,184.55,184.5,20.83603261]
[1755559247782,9.13429063,184.55,184.52,5.41946672]
[1755559247977,5.51153115,184.55,184.52,5.41946672]
[1755559248386,9.13429063,184.55,184.52,5.41946672]
[1755559248588,5.51153115,184.55,184.52,5.41946672]
[1755559248970,9.13429063,184.55,184.52,5.41946672]
[1755559249184,5.51153115,184.55,184.52,5.41946672]
[1755559249591,9.13429063,184.55,184.52,5.41946672]
[1755559249782,5.51153115,184.55,184.52,5.41946672]
[1755559250268,9.13429063,184.55,184.52,5.41946672]
[1755559250464,5.51153115,184.55,184.52,5.41946672]
[1755559250687,4.81153115,184.55,184.51,5.41976044]
[1755559250869,0.7,184.54,184.51,5.41976044]
[1755559251070,4.81153115,184.55,184.51,5.41976044]
[1755559251267,0.7,184.53,184.51,5.41976044]
[1755559251470,8.43429063,184.55,184.51,5.41976044]
[1755559251667,0.7,184.54,184.51,5.41976044]
[1755559254070,5.51153115,184.53,184.5,20.52617044]
[1755559254472,4.81153115,184.51,184.49,0.03]
[1755559254699,8.43456862,184.5,184.49,0.03]
[1755559254901,9.13456862,184.5,184.49,0.03]
[1755559255191,4.81153115,184.52,184.49,0.03]
[1755559255391,8.43456862,184.52,184.49,0.03]
[1755559255890,5.51153115,184.52,184.49,0.03]
[1755559256265,0.7,184.52,184.49,0.03]
[1755559256583,5.51153115,184.52,184.49,0.03]
[1755559257811,0.7,184.51,184.49,0.03]
[1755559258493,0.7,184.5,184.49,0.03]
[1755559260290,4.81153115,184.51,184.49,0.03]
[1755559260483,5.51153115,184.52,184.49,0.03]
[1755559260693,0.7,184.52,184.49,0.03]
[1755559260877,5.51153115,184.52,184.49,0.03]
[1755559261790,0.7,184.51,184.49,0.03]
[1755559262492,0.7,184.5,184.49,0.03]
[1755559262795,5.51153115,184.5,184.49,0.03]
[1755559264698,0.7,184.5,184.49,0.03]
[1755559264891,5.51153115,184.5,184.49,0.03]
[1755559265599,9.13454746,184.5,184.49,0.03]
[1755559265776,5.51153115,184.5,184.49,0.03]
[1755559265968,9.13454746,184.5,184.49,0.03]
[1755559266175,5.51153115,184.5,184.49,0.03]
[1755559266499,0.06,184.55,184.49,46.25774672]
[1755559266686,0.06,184.55,184.51,4.81153115]
[1755559266879,0.06,184.55,184.49,26.03]
[1755559266880,4.81153115,184.52,184.49,0.03]
[1755559267103,5.51153115,184.51,184.49,0.03]
[1755559267787,0.7,184.5,184.49,0.03]
[1755559268729,5.51153115,184.5,184.49,0.03]
[1755559270907,4.81153115,184.5,184.49,0.03]
[1755559271576,0.7,184.5,184.49,0.03]
[1755559274101,3.62059641,184.51,184.49,0.03]
[1755559274405,4.32059641,184.52,184.49,0.03]
[1755559274576,0.7,184.51,184.49,0.03]
[1755559274774,4.81153115,184.5,184.49,0.03]
[1755559274989,8.43353473,184.5,184.49,0.03]
[1755559275183,9.13353473,184.5,184.49,0.03]
[1755559275383,5.51153115,184.5,184.49,0.03]
[1755559275788,9.13353473,184.5,184.49,0.03]
[1755559275991,5.51153115,184.5,184.49,0.03]
[1755559276211,9.13353473,184.5,184.49,0.03]
[1755559277097,14.55358893,184.5,184.49,0.03]
[1755559277292,10.93158535,184.5,184.49,0.03]
[1755559277692,14.55358893,184.5,184.49,0.03]
[1755559278008,10.93158535,184.5,184.49,0.03]
[1755559278403,14.55358893,184.5,184.49,0.03]
[1755559278705,10.93158535,184.5,184.49,0.03]
[1755559279099,14.55358893,184.5,184.49,0.03]
[1755559279292,5.51153115,184.5,184.49,0.03]
[1755559279521,9.13353473,184.5,184.49,0.03]
[1755559282225,14.55358893,184.5,184.49,0.03]
[1755559285005,18.5767752,184.5,184.49,0.03]
[1755559285696,14.55358893,184.5,184.49,0.03]
[1755559285919,18.57676989,184.5,184.49,0.03]
[1755559286617,56.85676989,184.5,184.49,0.03]
[1755559287235,18.57676989,184.5,184.49,0.03]
[1755559287735,56.85676989,184.5,184.49,0.03]
[1755559288725,61.38831212,184.5,184.48,0.03]
[1755559288930,39.15671569,184.49,184.47,0.03]
[1755559289141,12.45671569,184.48,184.47,0.03]
[1755559289624,17.68825792,184.48,184.46,0.03]
[1755559289921,51.43671569,184.47,184.46,0.03]
[1755559290516,56.85765134,184.47,184.46,0.03]
[1755559291335,26.0,184.44,184.34,111.76534729]
[1755559291539,4.81153115,184.38,184.34,111.76534729]
[1755559291724,43.17153115,184.38,184.34,111.45534729]
[1755559291917,43.17153115,184.38,184.35,0.31]
[1755559292111,4.81153115,184.36,184.34,116.88000783]
[1755559292316,4.81153115,184.36,184.34,5.42466054]
[1755559292826,4.81153115,184.37,184.34,5.73466054]
[1755559295752,4.81153115,184.36,184.33,5.42504831]
[1755559296066,4.81153115,184.36,184.3,0.2]